[Event "*** Titled Tuesday 3|2 Blitz"]
[Site "Chess.com"]
[Date "2016.10.04"]
[Round "4"]
[White "Dale"]
[Black "biostatistician"]
[Result "1-0"]
[WhiteElo "2077"]
[BlackElo "2434"]
[TimeControl "180+2"]
[EndTime "11:48:51 PDT"]
[Termination "Dale won by checkmate"]

1. Nc3 {[%clk 0:02:52.2]} 1... d5 {[%clk 0:02:59.3]} 2. e3 {[%clk 0:02:50.7]}
2... e5 {[%clk 0:02:59.1]} 3. Qh5 {[%clk 0:02:49.9]} 3... Nc6 {[%clk 0:02:57.6]}
4. Bb5 {[%clk 0:02:50.4]} 4... Nf6 {[%clk 0:02:35.8]} 5. Qxe5+ {[%clk 0:02:50]}
5... Be6 {[%clk 0:02:36.8]} 6. Bxc6+ {[%clk 0:02:47.5]} 6... bxc6 {[%clk
0:02:38.7]} 7. Na4 {[%clk 0:02:48.1]} 7... Bd6 {[%clk 0:02:38.7]} 8. Qc3 {[%clk
0:02:49]} 8... O-O {[%clk 0:02:36.2]} 9. Nc5 {[%clk 0:02:47.5]} 9... Qe7 {[%clk
0:02:27.6]} 10. Nxe6 {[%clk 0:02:46]} 10... Qxe6 {[%clk 0:02:29.5]} 11. Nf3
{[%clk 0:02:45.1]} 11... c5 {[%clk 0:02:29.7]} 12. b3 {[%clk 0:02:42]} 12... d4
{[%clk 0:02:28.3]} 13. Qc4 {[%clk 0:02:36.6]} 13... Qg4 {[%clk 0:02:28.2]} 14.
O-O {[%clk 0:02:35.3]} 14... Rad8 {[%clk 0:02:20.5]} 15. Ba3 {[%clk 0:02:31.7]}
15... Rfe8 {[%clk 0:02:19.5]} 16. Bxc5 {[%clk 0:02:29.5]} 16... Bxc5 {[%clk
0:02:14.6]} 17. Qxc5 {[%clk 0:02:30.1]} 17... Rd5 {[%clk 0:02:11.3]} 18. Qxc7
{[%clk 0:02:29]} 18... Ne4 {[%clk 0:01:55.6]} 19. c4 {[%clk 0:02:18]} 19... Rf5
{[%clk 0:01:41.8]} 20. Nxd4 {[%clk 0:02:11.6]} 20... Rg5 {[%clk 0:01:39]} 21. g3
{[%clk 0:02:02.7]} 21... Rh5 {[%clk 0:01:37.2]} 22. f3 {[%clk 0:01:46.9]} 22...
Qh3 {[%clk 0:01:26.7]} 23. g4 {[%clk 0:01:48]} 23... Rh4 {[%clk 0:01:13.4]} 24.
fxe4 {[%clk 0:01:39.9]} 24... Rxg4+ {[%clk 0:01:10.3]} 25. Kf2 {[%clk
0:01:38.3]} 25... Rg2+ {[%clk 0:00:35.8]} 26. Ke1 {[%clk 0:01:37.8]} 26... f6
{[%clk 0:00:29.4]} 27. c5 {[%clk 0:01:21.5]} 27... Rxe4 {[%clk 0:00:28.5]} 28.
Qd8+ {[%clk 0:01:19.9]} 28... Kf7 {[%clk 0:00:29]} 29. Qd5+ {[%clk 0:01:20.3]}
29... Kf8 {[%clk 0:00:26.4]} 30. Qxe4 {[%clk 0:01:20.5]} 30... Qxh2 {[%clk
0:00:19.1]} 31. Ne6+ {[%clk 0:01:15.9]} 31... Kf7 {[%clk 0:00:18.7]} 32. Nd8+
{[%clk 0:01:13]} 32... Kf8 {[%clk 0:00:19.7]} 33. Qd5 {[%clk 0:01:05.4]} 33...
Ke7 {[%clk 0:00:15.5]} 34. Nc6+ {[%clk 0:00:59.1]} 34... Kf8 {[%clk 0:00:16.4]}
35. Qd6+ {[%clk 0:00:58.7]} 35... Qxd6 {[%clk 0:00:15.5]} 36. cxd6 {[%clk
0:00:59.8]} 36... Ke8 {[%clk 0:00:16.1]} 37. Rc1 {[%clk 0:00:53.6]} 37... Kd7
{[%clk 0:00:16.5]} 38. Ne7 {[%clk 0:00:51.2]} 38... Kxd6 {[%clk 0:00:17.5]} 39.
Nf5+ {[%clk 0:00:52.1]} 39... Ke5 {[%clk 0:00:18]} 40. Rc5+ {[%clk 0:00:51.3]}
40... Ke4 {[%clk 0:00:19.5]} 41. Rf4+ {[%clk 0:00:49]} 41... Kd3 {[%clk
0:00:20.5]} 42. Rc3# {[%clk 0:00:49.5]} 1-0

[Event "*** Titled Tuesday 3|2 Blitz"]
[Site "Chess.com"]
[Date "2016.10.04"]
[Round "4"]
[White "GianmarcoVaR"]
[Black "Semetey"]
[Result "0-1"]
[WhiteElo "2378"]
[BlackElo "2420"]
[TimeControl "180+2"]
[EndTime "11:48:53 PDT"]
[Termination "Semetey won by resignation"]

1. d4 {[%clk 0:03:00.4]} 1... Nf6 {[%clk 0:03:00.4]} 2. Bg5 {[%clk 0:02:59.2]}
2... d5 {[%clk 0:03:00.4]} 3. Bxf6 {[%clk 0:02:59.3]} 3... exf6 {[%clk
0:03:01.1]} 4. g3 {[%clk 0:02:59.3]} 4... c6 {[%clk 0:03:01.7]} 5. e3 {[%clk
0:03:00.5]} 5... Qb6 {[%clk 0:02:57.5]} 6. Qc1 {[%clk 0:02:59.4]} 6... Be6
{[%clk 0:02:57.9]} 7. Bg2 {[%clk 0:03:00.3]} 7... Nd7 {[%clk 0:02:57.7]} 8. Ne2
{[%clk 0:03:01.4]} 8... f5 {[%clk 0:02:57]} 9. Nf4 {[%clk 0:03:02.3]} 9... Bd6
{[%clk 0:02:56.4]} 10. Nxe6 {[%clk 0:03:02.8]} 10... fxe6 {[%clk 0:02:57.4]} 11.
O-O {[%clk 0:03:04.7]} 11... O-O {[%clk 0:02:49.5]} 12. c4 {[%clk 0:03:05.9]}
12... Be7 {[%clk 0:02:37.3]} 13. Nd2 {[%clk 0:03:02.4]} 13... Nf6 {[%clk
0:02:35.8]} 14. Qc2 {[%clk 0:03:01.5]} 14... Rac8 {[%clk 0:02:25.7]} 15. Rfd1
{[%clk 0:03:00.9]} 15... Ne4 {[%clk 0:02:18.1]} 16. Nf3 {[%clk 0:02:50.7]} 16...
Bf6 {[%clk 0:02:19.2]} 17. Rac1 {[%clk 0:02:44.3]} 17... g5 {[%clk 0:01:40]} 18.
cxd5 {[%clk 0:02:34.1]} 18... exd5 {[%clk 0:01:41.1]} 19. Ne1 {[%clk 0:02:35.3]}
19... Rce8 {[%clk 0:01:36.9]} 20. Nd3 {[%clk 0:02:35.2]} 20... h5 {[%clk
0:01:29.2]} 21. Nc5 {[%clk 0:02:26.8]} 21... Rf7 {[%clk 0:01:30.3]} 22. b4
{[%clk 0:02:16.1]} 22... h4 {[%clk 0:01:19.4]} 23. Qb3 {[%clk 0:01:51.6]} 23...
hxg3 {[%clk 0:01:10.9]} 24. hxg3 {[%clk 0:01:52.1]} 24... Rh7 {[%clk 0:01:08]}
25. b5 {[%clk 0:01:34.6]} 25... Qxb5 {[%clk 0:01:06.1]} 26. Qxb5 {[%clk
0:01:35.7]} 26... cxb5 {[%clk 0:01:07.2]} 27. Nxe4 {[%clk 0:01:37.4]} 27... dxe4
{[%clk 0:01:01.7]} 28. Rc5 {[%clk 0:01:39.1]} 28... f4 {[%clk 0:00:57.5]} 29.
Rxb5 {[%clk 0:01:39.5]} 29... f3 {[%clk 0:00:57.4]} 30. Bf1 {[%clk 0:01:39.9]}
30... b6 {[%clk 0:00:46.4]} 31. d5 {[%clk 0:01:24.9]} 31... Kf7 {[%clk
0:00:44.6]} 32. Rc1 {[%clk 0:01:07]} 32... Reh8 {[%clk 0:00:44.8]} 33. Rc7+
{[%clk 0:01:07.4]} 33... Be7 {[%clk 0:00:45.9]} 34. Bg2 {[%clk 0:01:08.8]} 34...
fxg2 {[%clk 0:00:44.6]} 35. Kxg2 {[%clk 0:01:10.1]} 35... Rh1 {[%clk 0:00:45.5]}
36. g4 {[%clk 0:01:10]} 36... R8h2+ {[%clk 0:00:25.7]} 37. Kg3 {[%clk
0:01:10.4]} 37... Ke8 {[%clk 0:00:25.7]} 38. Rc6 {[%clk 0:01:04]} 38... Kd7
{[%clk 0:00:26.1]} 39. d6 {[%clk 0:00:56.9]} 39... Bxd6+ {[%clk 0:00:25.7]} 40.
Rxd6+ {[%clk 0:00:58.8]} 40... Kxd6 {[%clk 0:00:27]} 41. Rxg5 {[%clk 0:00:59.9]}
41... Rh3+ {[%clk 0:00:25.7]} 42. Kf4 {[%clk 0:01:00.9]} 42... Rf3+ {[%clk
0:00:26.6]} 43. Kxe4 {[%clk 0:01:02.8]} 43... Rxf2 {[%clk 0:00:27.9]} 44. Rh5
{[%clk 0:01:04.4]} 44... Rxh5 {[%clk 0:00:28.1]} 45. gxh5 {[%clk 0:01:06.3]}
45... Rh2 {[%clk 0:00:29.5]} 0-1

[Event "*** Titled Tuesday 3|2 Blitz"]
[Site "Chess.com"]
[Date "2016.10.04"]
[Round "4"]
[White "promen1999"]
[Black "Lupul_Cenusiu"]
[Result "0-1"]
[WhiteElo "2287"]
[BlackElo "2384"]
[TimeControl "180+2"]
[EndTime "11:49:29 PDT"]
[Termination "Lupul_Cenusiu won by resignation"]

1. Nf3 {[%clk 0:03:02]} 1... Nf6 {[%clk 0:03:00]} 2. g3 {[%clk 0:03:02.1]} 2...
d5 {[%clk 0:02:59.4]} 3. Bg2 {[%clk 0:03:01.4]} 3... e6 {[%clk 0:03:00.7]} 4. c4
{[%clk 0:02:54.9]} 4... Be7 {[%clk 0:03:00.4]} 5. O-O {[%clk 0:02:55.3]} 5...
O-O {[%clk 0:03:00.9]} 6. d4 {[%clk 0:02:56]} 6... a6 {[%clk 0:03:00]} 7. b3
{[%clk 0:02:47.5]} 7... Nbd7 {[%clk 0:02:45.1]} 8. Bb2 {[%clk 0:02:47.6]} 8...
Ne4 {[%clk 0:02:45.4]} 9. Nc3 {[%clk 0:02:41]} 9... Nxc3 {[%clk 0:02:44.3]} 10.
Bxc3 {[%clk 0:02:41.5]} 10... c6 {[%clk 0:02:30.2]} 11. Qc2 {[%clk 0:02:30.6]}
11... b5 {[%clk 0:02:26.9]} 12. c5 {[%clk 0:02:17.8]} 12... a5 {[%clk
0:02:15.8]} 13. a3 {[%clk 0:02:12]} 13... f5 {[%clk 0:02:10.7]} 14. Ne1 {[%clk
0:02:11.7]} 14... Bf6 {[%clk 0:02:07.4]} 15. Nd3 {[%clk 0:02:12.1]} 15... Qc7
{[%clk 0:02:03.8]} 16. Qb2 {[%clk 0:01:57.2]} 16... Ba6 {[%clk 0:01:52.6]} 17.
Rae1 {[%clk 0:01:44.3]} 17... Rae8 {[%clk 0:01:51.9]} 18. Qd2 {[%clk 0:01:43.5]}
18... a4 {[%clk 0:01:47.5]} 19. Nb4 {[%clk 0:01:35.6]} 19... Ra8 {[%clk
0:01:39]} 20. f3 {[%clk 0:01:18.3]} 20... axb3 {[%clk 0:01:38.7]} 21. e4 {[%clk
0:01:18.9]} 21... Bb7 {[%clk 0:01:38.9]} 22. Bb2 {[%clk 0:01:00.1]} 22... h6
{[%clk 0:01:22.4]} 23. exf5 {[%clk 0:00:39.5]} 23... exf5 {[%clk 0:01:23.1]} 24.
Bh3 {[%clk 0:00:41.1]} 24... Kh8 {[%clk 0:00:32.3]} 25. Nd3 {[%clk 0:00:31.9]}
25... Ra4 {[%clk 0:00:27.9]} 26. Nf4 {[%clk 0:00:19.7]} 26... Rfa8 {[%clk
0:00:17.3]} 27. Ng6+ {[%clk 0:00:19.4]} 27... Kg8 {[%clk 0:00:18.1]} 28. Bxf5
{[%clk 0:00:20.7]} 28... Nf8 {[%clk 0:00:19.3]} 29. Nxf8 {[%clk 0:00:21.3]}
29... Rxf8 {[%clk 0:00:19.9]} 30. Be6+ {[%clk 0:00:22.7]} 30... Kh8 {[%clk
0:00:21.2]} 31. f4 {[%clk 0:00:24.2]} 31... Bc8 {[%clk 0:00:22.5]} 32. Bxc8
{[%clk 0:00:24.4]} 32... Qxc8 {[%clk 0:00:23.3]} 33. f5 {[%clk 0:00:25.3]} 33...
Rc4 {[%clk 0:00:23.8]} 34. Rc1 {[%clk 0:00:22.8]} 34... Re8 {[%clk 0:00:25.1]}
35. Rf3 {[%clk 0:00:16.3]} 35... Re4 {[%clk 0:00:25.2]} 36. Rxb3 {[%clk
0:00:13.9]} 36... Bg5 {[%clk 0:00:26]} 0-1

[Event "*** Titled Tuesday 3|2 Blitz"]
[Site "Chess.com"]
[Date "2016.10.04"]
[Round "4"]
[White "Usurpov"]
[Black "nihalsarin"]
[Result "0-1"]
[WhiteElo "2289"]
[BlackElo "2468"]
[TimeControl "180+2"]
[EndTime "11:49:31 PDT"]
[Termination "nihalsarin won by checkmate"]

1. e4 {[%clk 0:03:01.9]} 1... e5 {[%clk 0:03:00.4]} 2. Nf3 {[%clk 0:03:02.2]}
2... Nc6 {[%clk 0:03:00.1]} 3. Nc3 {[%clk 0:03:03.1]} 3... Nf6 {[%clk
0:03:00.8]} 4. d4 {[%clk 0:03:03]} 4... Bb4 {[%clk 0:03:01.1]} 5. Nxe5 {[%clk
0:03:02.2]} 5... O-O {[%clk 0:03:02.1]} 6. Qd3 {[%clk 0:02:45.1]} 6... Re8
{[%clk 0:02:22.3]} 7. Bd2 {[%clk 0:02:39.2]} 7... Nxe5 {[%clk 0:02:15.9]} 8.
dxe5 {[%clk 0:02:38.6]} 8... Rxe5 {[%clk 0:02:17]} 9. O-O-O {[%clk 0:02:31.2]}
9... Re8 {[%clk 0:02:09.1]} 10. Qg3 {[%clk 0:02:05.9]} 10... d6 {[%clk
0:01:49.7]} 11. Bd3 {[%clk 0:01:59.1]} 11... Be6 {[%clk 0:01:40.8]} 12. f4
{[%clk 0:01:50.2]} 12... Nh5 {[%clk 0:01:15.2]} 13. Qf3 {[%clk 0:01:20.9]} 13...
Qh4 {[%clk 0:01:15.1]} 14. g3 {[%clk 0:01:08.5]} 14... Qg4 {[%clk 0:01:15.1]}
15. Qg2 {[%clk 0:01:05.5]} 15... Bxc3 {[%clk 0:01:13.1]} 16. bxc3 {[%clk
0:01:06.5]} 16... f5 {[%clk 0:00:27.6]} 17. exf5 {[%clk 0:00:41]} 17... Bxf5
{[%clk 0:00:28.7]} 18. h3 {[%clk 0:00:07.9]} 18... Qg6 {[%clk 0:00:22.6]} 19.
Bxf5 {[%clk 0:00:08.9]} 19... Qxf5 {[%clk 0:00:23.1]} 20. g4 {[%clk 0:00:10.4]}
20... Nxf4 {[%clk 0:00:23]} 21. Qh2 {[%clk 0:00:07.5]} 21... Qc5 {[%clk
0:00:10]} 22. Qxf4 {[%clk 0:00:06.9]} 22... Qa3+ {[%clk 0:00:11.1]} 23. Kb1
{[%clk 0:00:08.2]} 23... Re5 {[%clk 0:00:12.5]} 24. Qc4+ {[%clk 0:00:05.4]}
24... Kh8 {[%clk 0:00:12.3]} 25. Qb3 {[%clk 0:00:07.3]} 25... Qa6 {[%clk
0:00:12.8]} 26. c4 {[%clk 0:00:08.7]} 26... b5 {[%clk 0:00:13.8]} 27. Bc3 {[%clk
0:00:08.7]} 27... bxc4 {[%clk 0:00:14.9]} 28. Qb2 {[%clk 0:00:10.2]} 28... Rb5
{[%clk 0:00:15.9]} 29. Ka1 {[%clk 0:00:11.5]} 29... Rxb2 {[%clk 0:00:16.8]} 30.
Bxb2 {[%clk 0:00:13.4]} 30... Rb8 {[%clk 0:00:17.3]} 31. Rb1 {[%clk 0:00:12.3]}
31... Qa5 {[%clk 0:00:17.8]} 32. Bxg7+ {[%clk 0:00:13]} 32... Kxg7 {[%clk
0:00:19.2]} 33. Rxb8 {[%clk 0:00:14.6]} 33... Qc3+ {[%clk 0:00:20.6]} 34. Rb2
{[%clk 0:00:16.2]} 34... a5 {[%clk 0:00:21]} 35. Kb1 {[%clk 0:00:17.7]} 35... a4
{[%clk 0:00:22.3]} 36. Rb7 {[%clk 0:00:18.9]} 36... Qa5 {[%clk 0:00:23.5]} 37.
Rf1 {[%clk 0:00:17.9]} 37... a3 {[%clk 0:00:24.7]} 38. Rb8 {[%clk 0:00:16.5]}
38... Qe5 {[%clk 0:00:22.4]} 39. Rb4 {[%clk 0:00:15.4]} 39... d5 {[%clk
0:00:22.9]} 40. Ra4 {[%clk 0:00:16]} 40... Qb2# {[%clk 0:00:22.4]} 0-1

[Event "*** Titled Tuesday 3|2 Blitz"]
[Site "Chess.com"]
[Date "2016.10.04"]
[Round "4"]
[White "Saitama_Hero"]
[Black "chessbia"]
[Result "0-1"]
[WhiteElo "2170"]
[BlackElo "2036"]
[TimeControl "180+2"]
[EndTime "11:49:34 PDT"]
[Termination "chessbia won by resignation"]

1. d4 {[%clk 0:03:00.9]} 1... d5 {[%clk 0:03:00.7]} 2. c4 {[%clk 0:02:55.7]}
2... c6 {[%clk 0:03:00.8]} 3. cxd5 {[%clk 0:02:56.1]} 3... cxd5 {[%clk
0:03:00.4]} 4. Nc3 {[%clk 0:02:58]} 4... Nf6 {[%clk 0:02:59.3]} 5. f3 {[%clk
0:02:59.5]} 5... a6 {[%clk 0:02:56.9]} 6. e4 {[%clk 0:02:59.9]} 6... e6 {[%clk
0:02:46]} 7. e5 {[%clk 0:02:59.4]} 7... Nfd7 {[%clk 0:02:45.4]} 8. f4 {[%clk
0:03:01.3]} 8... Be7 {[%clk 0:02:42]} 9. Nf3 {[%clk 0:03:03.2]} 9... Nc6 {[%clk
0:02:42.2]} 10. Be3 {[%clk 0:03:00.4]} 10... Nb6 {[%clk 0:02:34]} 11. Bd3 {[%clk
0:02:52.8]} 11... Nc4 {[%clk 0:02:32.7]} 12. Bxc4 {[%clk 0:02:52.7]} 12... dxc4
{[%clk 0:02:34.6]} 13. O-O {[%clk 0:02:51.2]} 13... b5 {[%clk 0:02:32.6]} 14. d5
{[%clk 0:02:50.9]} 14... exd5 {[%clk 0:02:26.5]} 15. Nxd5 {[%clk 0:02:52.8]}
15... O-O {[%clk 0:02:14.3]} 16. Qd2 {[%clk 0:02:46.6]} 16... Bf5 {[%clk
0:02:11.2]} 17. Rfd1 {[%clk 0:02:22.3]} 17... Bd3 {[%clk 0:02:07.5]} 18. Nxe7+
{[%clk 0:02:19.6]} 18... Qxe7 {[%clk 0:02:06.7]} 19. Qf2 {[%clk 0:02:19.4]}
19... Rfd8 {[%clk 0:02:05.4]} 20. Bc5 {[%clk 0:02:19.4]} 20... Qe6 {[%clk
0:01:58.8]} 21. Ng5 {[%clk 0:02:11.4]} 21... Qf5 {[%clk 0:01:53.2]} 22. h3
{[%clk 0:01:56]} 22... h6 {[%clk 0:01:46.9]} 23. g4 {[%clk 0:01:55.7]} 23... Qg6
{[%clk 0:01:35.8]} 24. Nf3 {[%clk 0:01:56.6]} 24... Qe4 {[%clk 0:01:28.5]} 25.
Be3 {[%clk 0:01:22]} 25... Nb4 {[%clk 0:01:23.2]} 26. Rd2 {[%clk 0:01:09.8]}
26... Nc2 {[%clk 0:01:14]} 27. Rxc2 {[%clk 0:01:11]} 27... Bxc2 {[%clk 0:01:15]}
28. Re1 {[%clk 0:01:10.7]} 28... Bd3 {[%clk 0:01:11.7]} 29. f5 {[%clk
0:01:07.7]} 29... Qb7 {[%clk 0:01:05.9]} 30. f6 {[%clk 0:00:50.4]} 30... Rd5
{[%clk 0:00:56.5]} 31. fxg7 {[%clk 0:00:49]} 31... Kxg7 {[%clk 0:00:50]} 32. Bd4
{[%clk 0:00:31.5]} 32... Kh7 {[%clk 0:00:28.9]} 33. Qh4 {[%clk 0:00:23.9]} 33...
Rg8 {[%clk 0:00:20.7]} 34. Be3 {[%clk 0:00:22.1]} 34... Rg6 {[%clk 0:00:20.8]}
35. Ng5+ {[%clk 0:00:21.9]} 35... Kg7 {[%clk 0:00:21.6]} 36. Nf3 {[%clk
0:00:16.7]} 36... Rd8 {[%clk 0:00:21]} 37. Qxd8 {[%clk 0:00:14.5]} 37... Qxf3
{[%clk 0:00:21.5]} 38. Qd4 {[%clk 0:00:15.4]} 38... Qg3+ {[%clk 0:00:21.8]} 39.
Kh1 {[%clk 0:00:12.9]} 39... Qxh3+ {[%clk 0:00:23.1]} 40. Kg1 {[%clk 0:00:12.6]}
40... Rxg4+ {[%clk 0:00:23.7]} 0-1

[Event "*** Titled Tuesday 3|2 Blitz"]
[Site "Chess.com"]
[Date "2016.10.04"]
[Round "4"]
[White "Drags95"]
[Black "maciek_92"]
[Result "0-1"]
[WhiteElo "2389"]
[BlackElo "2595"]
[TimeControl "180+2"]
[EndTime "11:49:38 PDT"]
[Termination "maciek_92 won by resignation"]

1. d4 {[%clk 0:03:01.9]} 1... Nf6 {[%clk 0:03:00.2]} 2. c4 {[%clk 0:03:02.2]}
2... g6 {[%clk 0:02:56.6]} 3. Nc3 {[%clk 0:03:02.3]} 3... Bg7 {[%clk 0:02:57.9]}
4. e4 {[%clk 0:03:03.4]} 4... d6 {[%clk 0:02:59.5]} 5. Bd3 {[%clk 0:03:04.5]}
5... O-O {[%clk 0:03:00.9]} 6. Nge2 {[%clk 0:03:05.6]} 6... Nc6 {[%clk
0:02:59.3]} 7. O-O {[%clk 0:03:05.9]} 7... e5 {[%clk 0:02:59.1]} 8. d5 {[%clk
0:03:06.5]} 8... Nd4 {[%clk 0:02:59.9]} 9. Be3 {[%clk 0:03:01.1]} 9... Nh5
{[%clk 0:02:53.7]} 10. Bc2 {[%clk 0:02:51.1]} 10... Nxc2 {[%clk 0:02:51.6]} 11.
Qxc2 {[%clk 0:02:53]} 11... f5 {[%clk 0:02:53.1]} 12. f3 {[%clk 0:02:44.3]}
12... Bd7 {[%clk 0:02:35.2]} 13. c5 {[%clk 0:02:42.6]} 13... f4 {[%clk
0:02:34.9]} 14. Bf2 {[%clk 0:02:43.5]} 14... g5 {[%clk 0:02:36.5]} 15. Qb3
{[%clk 0:02:16.1]} 15... Kh8 {[%clk 0:02:25.8]} 16. cxd6 {[%clk 0:02:00.7]}
16... cxd6 {[%clk 0:02:25.2]} 17. Nb5 {[%clk 0:02:02.1]} 17... g4 {[%clk
0:02:18.5]} 18. Nxd6 {[%clk 0:02:02.2]} 18... gxf3 {[%clk 0:02:10]} 19. Qxf3
{[%clk 0:02:04.1]} 19... Qg5 {[%clk 0:02:07.8]} 20. h3 {[%clk 0:01:47.1]} 20...
Rf6 {[%clk 0:01:46.7]} 21. Nxb7 {[%clk 0:01:39.8]} 21... Bb5 {[%clk 0:01:19.3]}
22. Rfe1 {[%clk 0:01:34]} 22... Rg8 {[%clk 0:01:16.6]} 23. Nc3 {[%clk
0:01:27.5]} 23... Bd7 {[%clk 0:01:14.9]} 24. Nc5 {[%clk 0:01:27.2]} 24... Bc8
{[%clk 0:01:16]} 25. Rad1 {[%clk 0:01:19.1]} 25... Bf8 {[%clk 0:01:16.7]} 26.
Ne6 {[%clk 0:01:16.4]} 26... Bxe6 {[%clk 0:01:11.5]} 27. dxe6 {[%clk 0:01:18.3]}
27... Rfg6 {[%clk 0:01:12.9]} 28. g4 {[%clk 0:00:38.9]} 28... Nf6 {[%clk
0:01:04.5]} 29. Nd5 {[%clk 0:00:36]} 29... h5 {[%clk 0:00:52.1]} 30. e7 {[%clk
0:00:31.1]} 30... hxg4 {[%clk 0:00:53]} 31. hxg4 {[%clk 0:00:30.6]} 31... Nxg4
{[%clk 0:00:50.9]} 32. Qg2 {[%clk 0:00:13]} 32... Bxe7 {[%clk 0:00:49.2]} 33.
Kf1 {[%clk 0:00:08.1]} 33... Qh5 {[%clk 0:00:24.9]} 34. Rd3 {[%clk 0:00:08.5]}
34... Nh2+ {[%clk 0:00:24.6]} 35. Qxh2 {[%clk 0:00:06.7]} 35... Qxh2 {[%clk
0:00:25.6]} 36. Nxe7 {[%clk 0:00:07.4]} 36... Qg2+ {[%clk 0:00:20.3]} 37. Ke2
{[%clk 0:00:08.3]} 37... Qxe4+ {[%clk 0:00:21.9]} 38. Kd2 {[%clk 0:00:09.6]}
38... Qb4+ {[%clk 0:00:23.1]} 39. Kc2 {[%clk 0:00:10.8]} 39... Qxe7 {[%clk
0:00:21.9]} 40. Rxe5 {[%clk 0:00:12.4]} 40... Rc8+ {[%clk 0:00:17.6]} 0-1

[Event "*** Titled Tuesday 3|2 Blitz"]
[Site "Chess.com"]
[Date "2016.10.04"]
[Round "4"]
[White "RobertoJBM"]
[Black "daro94"]
[Result "0-1"]
[WhiteElo "2526"]
[BlackElo "2648"]
[TimeControl "180+2"]
[EndTime "11:49:49 PDT"]
[Termination "daro94 won by resignation"]

1. d4 {[%clk 0:03:01.9]} 1... Nf6 {[%clk 0:02:58.3]} 2. c4 {[%clk 0:03:02.4]}
2... g6 {[%clk 0:02:58.5]} 3. Nf3 {[%clk 0:03:02.1]} 3... Bg7 {[%clk 0:02:59.4]}
4. g3 {[%clk 0:03:03.5]} 4... O-O {[%clk 0:02:59.6]} 5. Bg2 {[%clk 0:03:04.8]}
5... c5 {[%clk 0:03:01]} 6. d5 {[%clk 0:03:03.6]} 6... d6 {[%clk 0:03:00.6]} 7.
O-O {[%clk 0:03:04.1]} 7... e6 {[%clk 0:03:02.2]} 8. Nc3 {[%clk 0:03:04.7]} 8...
exd5 {[%clk 0:03:03.6]} 9. cxd5 {[%clk 0:03:06.6]} 9... Re8 {[%clk 0:03:05.2]}
10. Nd2 {[%clk 0:03:06.4]} 10... a6 {[%clk 0:03:05.8]} 11. a4 {[%clk 0:03:07.1]}
11... Nbd7 {[%clk 0:03:07.2]} 12. e4 {[%clk 0:03:06.4]} 12... Rb8 {[%clk
0:02:46.6]} 13. a5 {[%clk 0:03:05.8]} 13... b5 {[%clk 0:02:33]} 14. axb6 {[%clk
0:03:06.3]} 14... Nxb6 {[%clk 0:02:34.4]} 15. Qc2 {[%clk 0:03:06.9]} 15... Qc7
{[%clk 0:02:30.3]} 16. h3 {[%clk 0:03:07]} 16... Nfd7 {[%clk 0:02:21.1]} 17. Re1
{[%clk 0:03:02.3]} 17... c4 {[%clk 0:02:04.7]} 18. Nf3 {[%clk 0:03:01.4]} 18...
Nc5 {[%clk 0:01:59.9]} 19. Be3 {[%clk 0:03:00.7]} 19... Bd7 {[%clk 0:01:36.1]}
20. Bxc5 {[%clk 0:02:49]} 20... Qxc5 {[%clk 0:01:35.3]} 21. Rxa6 {[%clk
0:02:49.8]} 21... Ra8 {[%clk 0:01:26.8]} 22. Rea1 {[%clk 0:02:47.2]} 22... Rxa6
{[%clk 0:01:23.6]} 23. Rxa6 {[%clk 0:02:49.1]} 23... Ra8 {[%clk 0:01:25.1]} 24.
Rxa8+ {[%clk 0:02:49.4]} 24... Nxa8 {[%clk 0:01:27]} 25. Nd1 {[%clk 0:02:31.9]}
25... Nb6 {[%clk 0:01:25.3]} 26. b3 {[%clk 0:02:24.9]} 26... cxb3 {[%clk
0:01:11.5]} 27. Qxb3 {[%clk 0:02:26.8]} 27... Ba4 {[%clk 0:01:13]} 28. Qd3
{[%clk 0:02:23]} 28... Qc1 {[%clk 0:01:08.8]} 29. Qa6 {[%clk 0:02:21.8]} 29...
Bxd1 {[%clk 0:01:04]} 30. Kh2 {[%clk 0:02:22.9]} 30... Bxf3 {[%clk 0:01:02.6]}
31. Bxf3 {[%clk 0:02:24.8]} 31... Qc5 {[%clk 0:01:03.7]} 32. Kg2 {[%clk
0:02:25.2]} 32... h5 {[%clk 0:01:02]} 33. h4 {[%clk 0:02:24.1]} 33... Bd4 {[%clk
0:01:02.9]} 34. Qe2 {[%clk 0:02:16.6]} 34... Nc4 {[%clk 0:01:00.3]} 35. Bxh5
{[%clk 0:02:13.7]} 35... gxh5 {[%clk 0:00:59.2]} 36. Qxh5 {[%clk 0:02:15.6]}
36... Bg7 {[%clk 0:00:58.2]} 37. Qg5 {[%clk 0:02:14.8]} 37... Qd4 {[%clk
0:00:54.3]} 38. Qf5 {[%clk 0:02:14.7]} 38... Nd2 {[%clk 0:00:51]} 39. Qc8+
{[%clk 0:02:12.3]} 39... Bf8 {[%clk 0:00:48.5]} 40. Qg4+ {[%clk 0:02:13.2]}
40... Qg7 {[%clk 0:00:48.9]} 41. Qe2 {[%clk 0:02:14.2]} 41... Nb3 {[%clk
0:00:49.5]} 42. f4 {[%clk 0:02:13.9]} 42... Nc5 {[%clk 0:00:45.4]} 43. e5 {[%clk
0:02:14.6]} 43... Qg6 {[%clk 0:00:41.2]} 44. Kh2 {[%clk 0:01:44.5]} 44... dxe5
{[%clk 0:00:37.4]} 45. fxe5 {[%clk 0:01:45.5]} 45... Qe4 {[%clk 0:00:38.6]} 46.
Qxe4 {[%clk 0:01:39]} 46... Nxe4 {[%clk 0:00:36.8]} 47. Kg2 {[%clk 0:01:40.9]}
47... Nc3 {[%clk 0:00:28.9]} 48. d6 {[%clk 0:01:36.9]} 48... Kg7 {[%clk
0:00:22.4]} 49. Kf3 {[%clk 0:01:37.8]} 49... Kg6 {[%clk 0:00:21.6]} 50. g4
{[%clk 0:01:38.7]} 50... Nd5 {[%clk 0:00:20.5]} 51. Ke4 {[%clk 0:01:39.2]} 51...
Nb6 {[%clk 0:00:21.6]} 52. Kd4 {[%clk 0:01:33.8]} 52... Bg7 {[%clk 0:00:22.4]}
53. Ke4 {[%clk 0:01:20.3]} 53... Nd7 {[%clk 0:00:20.9]} 54. h5+ {[%clk 0:01:20]}
54... Kg5 {[%clk 0:00:21.5]} 55. Kd5 {[%clk 0:01:11]} 55... Nxe5 {[%clk
0:00:21.2]} 56. Kc5 {[%clk 0:01:07.2]} 56... Kxg4 {[%clk 0:00:20.7]} 0-1